bitfinex-derivatives/quotes_SOLF0:USTF0_20251107
["timestamp","ask_amount","ask_price","bid_price","bid_amount"]
[1762480586920,0.04243613,155.62,155.6,3.01]
[1762480587524,0.04243613,155.62,155.59,3.05407006]
[1762480587732,4.69817152,155.61,155.59,0.04407006]
[1762480587926,4.69817152,155.6,155.59,0.04407006]
[1762480592637,5.97817152,155.6,155.51,3.01]
[1762480592838,0.04243613,155.62,155.51,3.01]
[1762480592839,4.69817152,155.59,155.51,3.01]
[1762480593136,4.69817152,155.58,155.51,3.01]
[1762480593341,4.69817152,155.57,155.51,3.01]
[1762480593632,4.69817152,155.56,155.51,3.01]
[1762480593833,4.69817152,155.55,155.52,3.01]
[1762480594026,4.69817152,155.54,155.52,3.05739011]
[1762480594232,4.69817152,155.53,155.52,3.05739011]
[1762480594433,0.04726575,155.55,155.52,3.05739011]
[1762480594628,4.71274592,155.54,155.52,3.05739011]
[1762480594835,4.71292297,155.53,155.52,3.05739011]
[1762480595638,0.04726575,155.55,155.53,3.01]
[1762480595839,4.71172985,155.54,155.53,3.01]
[1762480596242,0.04726575,155.55,155.53,3.01]
[1762480596437,0.04726575,155.55,155.53,4.29]
[1762480596639,7.43076006,155.67,155.55,3.01]
[1762480596941,4.71207312,155.66,155.55,3.01]
[1762480597142,4.71207312,155.65,155.55,3.01]
[1762480597339,4.71207312,155.64,155.58,8.7976]
[1762480597641,4.75752652,155.63,155.59,3.05407843]
[1762480597837,4.71207312,155.62,155.59,3.05510566]
[1762480598140,0.0454534,155.63,155.6,3.02]
[1762480598737,0.0454534,155.63,155.62,3.02]
[1762480599035,4.79498914,155.63,155.62,3.02]
[1762480599238,4.79654507,155.63,155.62,3.02]
[1762480599441,4.79654507,155.63,155.59,3.06510566]
[1762480599639,4.75023907,155.62,155.59,3.06510566]
[1762480599946,0.0454534,155.63,155.59,3.06510566]
[1762480600337,4.7516657,155.62,155.59,3.06510566]
[1762480600644,0.0454534,155.63,155.59,3.06510566]
[1762480601148,0.0454534,155.63,155.61,2.98]
[1762480602643,4.75115098,155.69,155.62,1.28]
[1762480602839,4.75115098,155.68,155.63,2.98]
[1762480603144,4.77440385,155.75,155.63,2.98]
[1762480603444,9.52325583,155.74,155.63,2.98]
[1762480603641,0.0467515,155.7,155.67,3.0283925]
[1762480605936,5.7804,155.78,155.69,2.98]
[1762480606134,4.74285227,155.77,155.69,2.98]
[1762480606342,4.74285227,155.76,155.69,2.98]
[1762480606648,4.74285227,155.75,155.69,2.98]
[1762480606941,5.7811,155.77,155.71,2.98]
[1762480606942,0.04269523,155.74,155.71,2.98]
[1762480609044,0.04269523,155.74,155.7,0.04472554]
[1762480609849,0.04269523,155.74,155.7,3.02472554]
[1762480611350,0.04269523,155.74,155.7,0.04472554]
[1762480611351,4.73524103,155.73,155.7,0.04472554]
[1762480611644,0.04269523,155.74,155.7,0.04472554]
[1762480611846,4.73509061,155.73,155.7,0.04472554]
[1762480612040,0.04269523,155.74,155.7,0.04472554]
[1762480612242,4.73509061,155.73,155.7,0.04472554]
[1762480612442,0.04269523,155.74,155.7,0.04472554]
[1762480612645,4.73485719,155.73,155.7,0.04472554]
[1762480612850,0.04269523,155.74,155.7,0.04472554]
[1762480613052,4.73485915,155.73,155.7,0.04472554]
[1762480613350,4.73485915,155.72,155.7,0.04472554]
[1762480613545,4.73485915,155.71,155.7,0.04472554]
[1762480613753,4.73485915,155.71,155.64,2.98]
[1762480613952,5.7824,155.73,155.64,2.98]
[1762480614149,4.73611104,155.72,155.64,2.98]
[1762480614454,4.73611104,155.71,155.64,2.98]
[1762480614753,5.7824,155.73,155.64,2.98]
[1762480614945,0.04127399,155.69,155.66,0.04274251]
[1762480615144,0.04127399,155.69,155.66,3.02274251]
[1762480617047,4.73290113,155.75,155.68,2.98]
[1762480617245,65.82,155.76,155.68,2.98]
[1762480617448,65.82,155.76,155.69,2.98]
[1762480617649,92.46,155.81,155.69,2.98]
[1762480617943,5.7813,155.76,155.7,2.98]
[1762480618144,0.04375039,155.75,155.72,2.98]
[1762480620456,0.04375039,155.75,155.71,3.02529694]
[1762480623250,0.04375039,155.75,155.71,0.04529694]
[1762480623451,0.04375039,155.75,155.71,3.02529694]
[1762480627058,0.04375039,155.75,155.72,2.98]
[1762480627361,0.04375039,155.75,155.71,0.04529694]
[1762480627662,5.7825,155.73,155.71,0.04529694]
[1762480627862,4.72092872,155.72,155.71,0.04529694]
[1762480628057,4.72092872,155.72,155.64,2.98]
[1762480628257,4.72399471,155.71,155.64,2.98]
[1762480628458,65.78,155.74,155.64,2.98]
[1762480628459,4.67414951,155.7,155.64,2.98]
[1762480628663,4.67414951,155.73,155.64,2.98]
[1762480628960,0.04060002,155.7,155.67,3.02766725]
[1762480629156,4.67401404,155.78,155.67,2.98]
[1762480629358,4.67401404,155.77,155.67,2.98]
[1762480629567,0.04053302,155.74,155.72,2.98]
[1762480629755,0.04852997,155.75,155.72,2.98]
[1762480638170,0.04852997,155.75,155.73,3.15]
[1762480638374,9.46237857,155.84,155.75,3.15]
[1762480638569,4.68270961,155.83,155.77,3.15]
[1762480638774,4.68270961,155.82,155.77,3.15]
[1762480639083,1.85693388,155.85,155.77,3.15]
[1762480639375,0.04350627,155.83,155.8,3.15]
[1762480639583,4.68513427,155.82,155.8,3.15]
[1762480639778,0.04350627,155.83,155.8,3.15]
[1762480640177,4.69000333,155.82,155.8,3.15]
[1762480640378,0.04350627,155.83,155.8,3.15]
[1762480640579,4.68823961,155.82,155.8,3.15]
[1762480640878,0.04350627,155.83,155.8,3.15]
[1762480641081,4.68823961,155.82,155.8,3.15]
[1762480641279,4.68823961,155.81,155.8,3.15]
[1762480642779,0.04350627,155.83,155.8,3.15]
[1762480643183,4.69256767,155.82,155.8,3.15]
[1762480643381,0.04350627,155.83,155.8,3.15]
[1762480643772,5.82240627,155.83,155.8,3.15]
[1762480643978,4.6921277,155.82,155.8,3.15]
[1762480644181,4.69417511,155.81,155.8,3.15]
[1762480644370,5.82240627,155.83,155.8,3.15]
[1762480644576,4.69278818,155.82,155.8,3.15]
[1762480644778,4.69278818,155.81,155.8,3.15]
[1762480644974,417.97,155.91,155.8,3.15]
[1762480645280,7.87905639,155.9,155.8,3.15]
[1762480645481,4.78905639,155.89,155.8,3.15]
[1762480645789,3.09,155.9,155.83,3.15]
[1762480645985,0.04185765,155.88,155.85,3.19766766]
[1762480650187,0.04185765,155.88,155.85,4.47766766]
[1762480650377,4.77621263,155.94,155.86,3.15]
[1762480650577,4.77621263,155.95,155.86,3.15]
[1762480650791,8.8639,155.96,155.88,5.7764]
[1762480650984,4.7755598,155.95,155.89,3.15]
[1762480651183,3.09,155.96,155.89,3.15]
[1762480651488,3.09,155.96,155.91,0.04613183]
[1762480651791,3.09,155.95,155.91,3.19613183]
[1762480654991,5.7739,155.96,155.91,3.19613183]
[1762480655194,8.8639,155.96,155.91,3.19613183]
[1762480655597,3.09,155.96,155.91,3.19613183]
[1762480656496,3.09,155.99,155.91,3.19613183]
[1762480656791,3.09,156.03,155.91,3.19613183]
[1762480657093,5.772,156.01,155.95,3.19144205]
[1762480657294,3.09,155.99,155.96,0.04418004]
[1762480657496,3.09,155.98,155.96,0.04643138]
[1762480657686,4.59432037,156.01,155.96,0.04643138]
[1762480657888,7.59432037,156.0,155.96,3.18643138]
[1762480658094,3.0,156.0,155.96,3.18643138]
[1762480658998,99.49738144,156.07,155.96,3.18643138]
[1762480658999,3.0,156.15,156.02,3.14]
[1762480659190,11.83525395,156.21,155.97,9.9818375]
[1762480659191,7.70520159,156.18,156.08,3.14]
[1762480659500,3.0,156.21,156.12,3.14]
[1762480659804,7.69273679,156.25,156.15,3.18351268]
[1762480659986,7.69273679,156.25,156.18,0.04111157]
[1762480660191,8.7641,156.23,156.18,3.18111157]
[1762480660390,3.0,156.23,156.18,3.18111157]
[1762480660898,5.763,156.25,156.18,3.18111157]
[1762480661093,3.12,156.25,156.18,3.18111157]
[1762480661295,5.7637,156.24,156.18,3.18111157]
[1762480661798,3.12,156.25,156.18,3.18111157]
[1762480662494,8.8841,156.22,156.18,0.04111157]
[1762480662698,8.8841,156.22,156.18,0.04512094]
[1762480662899,65.62,156.26,156.18,3.04512094]
[1762480663094,8.8833,156.25,156.18,3.04512094]
[1762480664395,5.7637,156.24,156.18,3.04512094]
[1762480665197,3.12,156.25,156.18,3.04512094]
[1762480666391,5.7634,156.24,156.18,3.04512094]
[1762480666603,8.8834,156.24,156.18,0.04512094]
[1762480666799,65.6,156.27,156.19,3.0]
[1762480667100,3.12,156.26,156.21,0.04614148]
[1762480667398,3.12,156.3,156.21,3.04614148]
[1762480667592,65.58,156.29,156.21,3.04614148]
[1762480667792,3.12,156.3,156.21,3.04614148]
[1762480667997,71.3419,156.29,156.21,3.04614148]
[1762480668306,3.12,156.3,156.21,3.04614148]
[1762480669308,68.68,156.34,156.24,3.0]
[1762480669603,68.68,156.34,156.27,0.04212691]
[1762480670910,3.12,156.34,156.27,0.04212691]
[1762480671099,68.68,156.34,156.27,0.04212691]
[1762480671609,3.12,156.34,156.27,0.04212691]
[1762480671803,3.12,156.33,156.27,0.04212691]
[1762480672694,8.8814,156.3,156.27,0.04212691]
[1762480672897,3.12,156.3,156.27,0.04212691]
[1762480674008,68.66,156.32,156.27,3.04212691]
[1762480674207,5.7601,156.33,156.27,3.04212691]
[1762480674407,92.38,156.35,156.27,3.04212691]
[1762480674408,157.92,156.35,156.27,3.04212691]
[1762480674811,161.04,156.35,156.27,3.04212691]
[1762480675006,3.12,156.34,156.27,3.04212691]
[1762480675504,3.12,156.45,156.27,3.04212691]
[1762480675705,3.12,156.43,156.34,0.0425995]
[1762480675912,3.12,156.42,156.37,0.0478561]
[1762480676111,3.12,156.42,156.37,3.0478561]
[1762480676310,3.12,156.42,156.37,0.0478561]
[1762480676508,3.12,156.42,156.37,3.0478561]
[1762480676906,3.12,156.47,156.37,3.0478561]
[1762480677108,3.12,156.47,156.4,0.04159241]
[1762480677811,3.12,156.47,156.4,3.04159241]
[1762480678703,5.7556,156.46,156.4,3.04159241]
[1762480679414,3.12,156.45,156.4,0.04159241]
[1762480679604,3.12,156.42,156.32,3.0]
[1762480680312,3.12,156.39,156.28,3.0]
[1762480680507,3.12,156.36,156.28,3.0]
[1762480680708,5.7603,156.33,156.32,0.0404297]
[1762480680912,3.16393242,156.35,156.32,0.0404297]
[1762480681608,0.04393242,156.35,156.32,3.0404297]
[1762480682011,3.16393242,156.35,156.32,0.0404297]
[1762480682210,0.04393242,156.35,156.32,0.0404297]
[1762480683214,5.7597,156.34,156.32,0.0404297]
[1762480683413,0.04393242,156.35,156.32,0.0404297]
[1762480683715,0.04393242,156.35,156.32,3.0404297]
[1762480683912,7.47091875,156.42,156.32,3.0404297]
[1762480684114,3.12,156.38,156.28,3.0]
[1762480684417,7.47091875,156.42,156.28,3.0]
[1762480684617,7.47091875,156.5,156.35,3.0]
[1762480684818,5.7545,156.49,156.41,3.0478042]
[1762480685021,7.47091875,156.5,156.41,3.0478042]
[1762480685915,8.8744,156.49,156.41,3.0478042]
[1762480686118,3.12,156.49,156.41,3.0478042]
[1762480687817,3.12,156.49,156.41,0.0478042]
[1762480687818,3.12,156.42,156.41,0.0478042]
[1762480688117,5.7566,156.43,156.41,0.0478042]
[1762480688330,65.48,156.49,156.41,0.0478042]
[1762480688331,3.12,156.44,156.41,0.0478042]
[1762480689417,3.12,156.49,156.41,3.0478042]
[1762480689621,3.12,156.51,156.41,3.0]
[1762480689925,3.12,156.51,156.44,0.04288733]
[1762480690323,8.8748,156.48,156.44,0.04288733]
[1762480690624,2.99,156.47,156.44,0.04288733]
[1762480691119,8.7455,156.46,156.44,0.04288733]
[1762480691322,2.99,156.46,156.44,0.04288733]
[1762480691728,8.7456,156.45,156.44,0.04288733]
[1762480692117,5.7556,156.45,156.44,0.04288733]
[1762480693121,8.7456,156.45,156.44,0.04288733]
[1762480693822,2.99,156.45,156.44,0.04288733]
[1762480698329,2.99,156.45,156.37,2.96]
[1762480698828,8.7474,156.41,156.33,2.96]
[1762480699133,2.99,156.41,156.33,2.96]
[1762480699333,0.04288733,156.39,156.35,0.04444031]
[1762480700431,0.04288733,156.39,156.35,3.00444031]
[1762480701527,0.04288733,156.39,156.35,4.28444031]
[1762480701736,0.04288733,156.39,156.35,3.00444031]
[1762480701923,0.04288733,156.39,156.35,1.32444031]
[1762480702231,0.04288733,156.39,156.36,2.96]
[1762480702434,10.68759824,156.49,156.37,2.96]
[1762480702627,7.82203617,156.48,156.39,2.96]
[1762480702834,5.7554,156.46,156.39,2.96]
[1762480703227,4.84663226,156.45,156.39,2.96]
[1762480703533,5.7554,156.46,156.4,0.04436648]
[1762480703534,2.99,156.43,156.4,0.04436648]
[1762480703731,4.84663226,156.42,156.4,0.04676931]
[1762480703936,4.84663226,156.41,156.4,0.04676931]
[1762480704237,5.77319868,156.47,156.4,3.00676931]
[1762480704435,9.34537518,156.46,156.4,3.00676931]
[1762480704631,5.77319868,156.47,156.4,0.04676931]
[1762480704632,2.99,156.42,156.4,0.04676931]
[1762480704828,7.8426259,156.41,156.4,0.04676931]
[1762480705025,4.8526259,156.41,156.4,0.04676931]
[1762480705231,15.12120629,156.41,156.4,0.04676931]
[1762480705737,4.8526259,156.41,156.4,0.04676931]
[1762480705939,12.34006988,156.41,156.4,0.04676931]
[1762480706139,18.11326856,156.41,156.4,0.04676931]
[1762480706337,12.34006988,156.41,156.4,0.04676931]
[1762480707238,12.34006988,156.41,156.31,2.96]
[1762480707438,5.90601904,156.38,156.31,2.96]
[1762480707636,9.35006988,156.37,156.31,2.96]
[1762480707841,4.8526259,156.36,156.31,2.96]
[1762480708138,4.8526259,156.35,156.31,2.96]
[1762480708440,4.8526259,156.34,156.31,3.00154772]
[1762480708628,4.8526259,156.33,156.31,3.00154772]
[1762480708832,0.04676931,156.35,156.31,3.00154772]
[1762480709037,4.86838349,156.34,156.31,3.00154772]
[1762480709241,4.86838349,156.33,156.31,3.00154772]
[1762480709548,0.008285,156.35,156.31,3.00154772]
[1762480709929,4.8724727,156.34,156.31,8.76214772]
[1762480710134,4.87286993,156.33,156.32,2.96]
[1762480710533,4.87286993,156.33,156.31,3.00154772]
[1762480710844,4.87286993,156.32,156.31,3.00154772]
[1762480711739,4.87286993,156.32,156.31,0.04154772]
[1762480712146,4.87286993,156.32,156.31,3.00154772]
[1762480712535,11.54639736,156.41,156.31,0.04154772]
[1762480712842,11.54639736,156.51,156.35,2.96]
[1762480713039,7.50966284,156.5,156.35,2.96]
[1762480713240,4.51966284,156.49,156.41,5.7569]
[1762480713543,4.51966284,156.48,156.41,5.7569]
[1762480713739,2.99,156.48,156.43,0.04277427]
[1762480714244,2.99,156.48,156.43,3.00277427]
[1762480716338,2.99,156.48,156.43,0.04277427]
[1762480717747,2.99,156.48,156.43,3.00277427]
[1762480718143,8.7447,156.48,156.43,0.04277427]
[1762480718446,2.95,156.47,156.43,0.04277427]
[1762480718651,2.95,156.47,156.43,0.04638199]
[1762480719335,8.705,156.47,156.43,0.04638199]
[1762480719542,2.95,156.5,156.43,0.04638199]
[1762480720350,2.95,156.5,156.43,3.00638199]
[1762480722250,7.34787057,156.57,156.43,3.00638199]
[1762480722251,2.98,156.55,156.43,3.00638199]
[1762480722450,2.98,156.55,156.47,0.04842669]
[1762480722644,2.98,156.53,156.47,0.04842669]
[1762480722842,2.98,156.53,156.48,0.0427412]
[1762480723449,8.7329,156.53,156.48,0.0427412]
[1762480723642,2.98,156.53,156.48,0.0427412]
[1762480725845,2.98,156.53,156.48,3.0127412]
[1762480727151,2.98,156.52,156.48,3.0127412]
[1762480727947,5.7529,156.53,156.48,3.0127412]
[1762480727948,2.98,156.53,156.48,3.0127412]
[1762480728854,2.98,156.57,156.48,3.0127412]
[1762480729151,2.98,156.57,156.51,0.04611676]
[1762480730046,2.98,156.54,156.51,0.04611676]
[1762480730842,2.98,156.66,156.52,2.97]
[1762480731152,2.98,156.66,156.48,7.34787057]
[1762480731153,2.98,156.66,156.57,0.04735933]
[1762480731353,2.98,156.66,156.58,2.97]
[1762480731744,2.98,156.66,156.6,0.04081263]
[1762480732543,2.98,156.69,156.6,3.01081263]
[1762480732752,2.98,156.69,156.63,0.04164207]
[1762480733255,8.727,156.69,156.63,0.04164207]
[1762480733446,2.98,156.69,156.63,0.04164207]
[1762480733753,2.98,156.67,156.63,0.04164207]
[1762480733953,2.98,156.67,156.63,0.04744752]
[1762480734746,2.98,156.67,156.63,3.01744752]
[1762480734951,2.98,156.73,156.63,3.01744752]
[1762480735152,2.98,156.73,156.66,0.0461345]
[1762480735354,2.98,156.7,156.66,0.0461345]
[1762480736050,2.98,156.68,156.66,0.0461345]
[1762480736253,2.98,156.68,156.56,2.97]
[1762480736453,2.98,156.67,156.57,2.97]
[1762480736958,2.98,156.67,156.59,8.7202]
[1762480737253,0.04232156,156.65,156.61,3.01447707]
[1762480738461,0.04232156,156.65,156.63,2.97]
[1762480738650,68.64,156.72,156.63,2.97]
[1762480738850,74.3861,156.72,156.63,2.97]
[1762480739460,74.3861,156.72,156.65,2.97]
[1762480739659,8.7261,156.72,156.67,0.04364503]
[1762480740256,2.98,156.74,156.67,3.01364503]
[1762480740458,2.98,156.74,156.69,0.0425945]
[1762480740756,2.98,156.79,156.69,3.0125945]
[1762480740959,2.98,156.79,156.69,2.97]
[1762480741262,2.98,156.79,156.72,0.04702518]
[1762480741461,2.98,156.79,156.72,3.01702518]
[1762480741662,92.04,156.82,156.72,3.01702518]
[1762480741663,5.7422,156.82,156.72,3.01702518]
[1762480741865,8.7222,156.82,156.75,0.04232754]
[1762480742154,2.98,156.82,156.75,3.01232754]
[1762480742361,2.98,156.88,156.75,3.01232754]
[1762480742660,44.4,156.88,156.8,0.0486768]
[1762480742959,2.98,156.85,156.8,0.0486768]
[1762480743350,2.98,156.83,156.8,0.0486768]
[1762480743558,2.98,156.83,156.67,2.97]
[1762480743559,3.0253113,156.83,156.67,2.97]
[1762480743853,5.744,156.77,156.69,2.97]
[1762480744456,2.98,156.8,156.71,2.97]
[1762480744662,0.04102551,156.77,156.74,0.04186765]
[1762480744960,0.04102551,156.77,156.74,3.01186765]
[1762480745460,2.98,156.75,156.74,0.04186765]
[1762480745660,2.98,156.75,156.64,2.97]
[1762480745858,2.98,156.74,156.64,2.97]
[1762480746460,2.98,156.74,156.65,2.97]
[1762480746660,18.83267057,156.82,156.67,2.97]
[1762480746661,2.98,156.81,156.67,2.97]
[1762480746862,0.04220243,156.76,156.73,2.97]
[1762480747053,2.98,156.84,156.77,2.97]
[1762480747258,5.7411,156.85,156.77,2.97]
[1762480748064,0.0487098,156.83,156.79,3.01292127]
[1762480750565,3.09,156.92,156.8,3.12]
[1762480751068,3.09,156.92,156.83,3.12]
[1762480751666,3.09,156.92,156.86,0.04109042]
[1762480752268,5.7393,156.9,156.86,0.04109042]
[1762480752463,8.8293,156.9,156.86,0.04109042]
[1762480752669,3.09,156.89,156.86,0.04109042]
[1762480753072,3.09,156.88,156.79,3.12]
[1762480753459,8.83,156.88,156.79,3.12]
[1762480753970,3.09,156.91,156.8,3.12]
[1762480754157,0.04347273,156.85,156.83,3.12]
[1762480754364,0.04347273,156.86,156.83,3.12]
[1762480754557,0.04347273,156.86,156.83,3.16395244]
[1762480755669,452.66988421,156.95,156.83,3.16395244]
[1762480755670,3.09,157.0,156.85,3.12]
[1762480755866,3.09,157.0,156.84,1.28]
[1762480755867,3.09,157.0,156.9,3.12]
[1762480756068,94.99,157.04,156.9,3.12]
[1762480756270,94.99,157.04,156.83,108.4941]
[1762480756271,94.99,157.04,156.92,3.12]
[1762480756467,94.99,157.04,156.94,3.12]
[1762480756669,94.99,157.04,156.97,0.04695036]
[1762480756869,3.09,157.01,156.97,0.04695036]
[1762480757066,8.8253,157.01,156.97,0.04695036]
[1762480757266,94.99,157.04,156.97,0.04695036]
[1762480757471,3.09,157.03,156.97,0.04695036]
[1762480757662,91.9,157.04,156.97,0.04695036]
[1762480757972,3.09,157.07,156.97,3.16695036]
[1762480758178,3.09,157.07,157.0,0.04109753]
[1762480758375,8.8231,157.07,157.0,0.04109753]
[1762480758571,3.09,157.07,157.0,0.04109753]
[1762480758868,3.09,157.07,157.0,3.16109753]
[1762480759075,3.09,157.06,157.0,0.04109753]
[1762480760277,3.09,157.03,157.0,0.04109753]
[1762480760467,3.09,157.03,156.91,3.12]
[1762480760874,3.09,157.02,156.91,3.12]
[1762480761470,0.04109753,156.98,156.95,0.04680994]
[1762480761870,0.04109753,156.98,156.95,3.16680994]
[1762480763775,3.13109753,156.98,156.95,0.04680994]
[1762480764273,0.04109753,156.98,156.95,0.04680994]
[1762480766774,3.13109753,156.98,156.95,0.04680994]
[1762480766975,0.04109753,156.98,156.95,0.04680994]
[1762480767574,3.13109753,156.98,156.95,0.04680994]
[1762480768274,0.04109753,156.98,156.95,3.16680994]
[1762480769972,7.4252757,156.98,156.95,0.04680994]
[1762480770176,3.09,156.97,156.87,3.12]
[1762480770371,3.09,156.96,156.87,3.12]
[1762480771179,3.1305628,156.93,156.9,0.04194606]
[1762480771481,8.8289,156.91,156.83,3.12]
[1762480772177,5.7395,156.9,156.83,3.12]
[1762480772381,0.04452865,156.88,156.85,0.04032786]
[1762480773083,3.13452865,156.88,156.85,0.04032786]
[1762480773477,0.04452865,156.88,156.85,0.04032786]
[1762480774189,0.04452865,156.88,156.85,3.16032786]
[1762480774380,0.04452865,156.88,156.85,0.04032786]
[1762480774577,0.04452865,156.88,156.87,3.12]
[1762480775985,3.09,156.95,156.87,3.12]
[1762480776890,3.09,156.92,156.89,0.04247539]
[1762480777085,0.04680077,156.93,156.89,3.16247539]
[1762480779393,0.04680077,156.93,156.92,3.0]
[1762480779586,7.35417817,157.0,156.92,3.0]
[1762480779989,7.35417817,157.0,156.74,7.84001818]
[1762480779990,3.06,156.99,156.81,85.0]
[1762480780186,3.06,156.99,156.84,3.0]
[1762480780590,0.04279916,156.93,156.92,3.04]
[1762480780890,3.07,157.03,156.92,3.04]
[1762480781194,3.07,157.03,156.95,3.04]
[1762480781589,3.07,157.03,156.96,3.04]
[1762480781883,3.07,157.03,156.89,4.29417817]
[1762480781884,3.07,157.03,156.98,3.08064149]
[1762480782191,3.07,157.03,156.99,0.04806931]
[1762480783186,19.29274616,157.07,156.99,3.08806931]
[1762480783187,5.7335,157.06,156.99,3.08806931]
[1762480783588,3.07,157.07,156.99,3.08806931]
[1762480785095,3.07,157.07,157.0,5.7353]
[1762480785791,3.07,157.11,157.02,3.04]
[1762480785985,3.07,157.11,157.05,0.04448312]
[1762480787092,3.07,157.1,157.05,0.04448312]
[1762480787292,3.07,157.06,156.94,3.04]
[1762480787497,3.07,157.04,156.94,8.7774]
[1762480787692,3.07,157.03,156.94,3.04]
[1762480787995,3.07,157.03,156.95,3.04]
[1762480788192,0.04448312,157.01,156.97,3.08237347]
[1762480788695,3.11448312,157.01,156.97,0.04237347]
[1762480788901,0.04448312,157.01,156.97,3.08237347]
[1762480789993,0.04448312,157.01,157.0,3.04]
[1762480791101,3.07,157.09,157.0,4.32]
[1762480791296,3.07,157.09,157.01,3.04]
[1762480792204,3.07,157.09,157.03,0.04444766]
[1762480793611,4.29417817,157.08,157.03,0.04444766]
[1762480793798,3.07,157.07,157.03,0.04444766]
[1762480796506,3.07,157.09,157.03,3.08444766]
[1762480796705,3.07,157.09,157.04,0.04269351]
[1762480797004,3.07,157.06,157.05,0.04579673]
[1762480800101,4.35,157.06,157.05,0.04579673]
[1762480800308,3.07,157.03,156.95,3.04]
[1762480800796,4.29417817,157.07,156.95,3.04]
[1762480800999,3.07,157.06,156.95,3.04]
[1762480801307,0.04223864,157.02,157.0,3.04]
[1762480801705,0.04223864,157.02,157.01,4.32]
[1762480801911,3.07,157.07,157.01,3.04]
[1762480802802,3.07,157.07,157.02,3.08619351]
[1762480803003,3.07,157.12,157.02,3.08619351]
[1762480803310,3.07,157.12,157.05,0.04914305]
[1762480806816,3.07,157.12,157.05,3.08914305]
[1762480808215,8.8002,157.15,157.06,3.04]
[1762480808419,8.8002,157.15,157.09,0.04626337]
[1762480809012,3.07,157.14,157.09,0.04626337]
[1762480809507,3.07,157.14,157.09,3.08626337]
[1762480809707,3.07,157.18,157.09,3.08626337]
[1762480809926,3.07,157.29,157.15,3.04]
[1762480810112,3.07,157.29,157.14,4.29417817]
[1762480810113,3.07,157.29,157.18,3.04]
[1762480810307,3.07,157.29,157.21,3.04]
[1762480810515,2.97,157.35,157.23,3.21039013]
[1762480810718,2.97,157.35,157.27,3.17]
[1762480811023,2.97,157.35,157.27,3.21486508]
[1762480811213,2.97,157.35,157.27,0.04486508]
[1762480811415,2.97,157.3,157.27,0.04486508]
[1762480812118,2.97,157.29,157.27,0.04486508]
[1762480812316,2.97,157.29,157.19,3.17]
[1762480812522,5.7261,157.26,157.16,3.17]
[1762480812718,2.97,157.25,157.16,3.17]
[1762480813216,5.7268,157.24,157.16,3.17]
[1762480813418,0.04340405,157.22,157.18,0.04320453]
[1762480814010,0.04340405,157.22,157.18,3.21320453]
[1762480814218,64.41,157.33,157.19,3.17]
[1762480814417,64.41,157.33,157.2,3.17]
[1762480814418,2.97,157.32,157.2,3.17]
[1762480814925,2.97,157.32,157.21,3.17]
[1762480815422,2.97,157.36,157.25,3.21568916]
[1762480815622,2.97,157.36,157.29,0.04382827]
[1762480816423,8.6925,157.36,157.29,0.04382827]
[1762480817520,2.97,157.33,157.29,0.04382827]
[1762480817822,2.97,157.33,157.29,0.04705017]
[1762480818024,2.97,157.32,157.29,0.04705017]
[1762480818418,2.97,157.31,157.29,0.04705017]
[1762480818819,2.97,157.3,157.18,3.17]
[1762480819121,8.6968,157.24,157.14,3.17]
[1762480819324,2.97,157.24,157.14,3.17]
[1762480819520,2.97,157.28,157.17,3.17]
[1762480819723,10.24435112,157.32,157.17,3.17]
[1762480820027,2.97,157.31,157.17,3.17]
[1762480820228,0.04592274,157.26,157.23,0.04160425]
[1762480820628,0.04592274,157.26,157.23,3.21160425]
[1762480820821,0.04592274,157.26,157.23,0.04160425]